[Event "EIBCC 2024"]
[Site "Skopje"]
[Date "2024.12.09"]
[Round "3.21"]
[White "Pacher, Milan"]
[Black "Smeets, Jan"]
[Result "0-1"]
[Annotator "TA"]
[ECO "A06"]
[WhiteElo "2310"]
[BlackElo "2552"]
[PlyCount "66"]
[EventDate "2024.12.07"]
[EventCountry "MKD"]
[SourceTitle "playchess.com"]
[Source "ChessBase"]
[SourceQuality "1"]
[TimeControl "180+2"]

{[%evp 9,66,12,14,0,6,0,0,0,13,17,57,43,33,3,19,0,0,4,2,-16,-9,-35,-35,-39,-29,-38,-33,-35,-18,-21,0,0,27,0,106,90,122,39,145,122,513,466,531,520,531,507,29995,0,0,-155,-155,-1404,-1362,-2668,-1534,-1326,-342,-342,-292]} 1. Nf3 {[%emt 0:00:01]} d5 {[%emt 0:00:01]} 2. e3 {[%emt 0:00:02]} Nf6 {[%emt 0:00:07]} 3. b3 {[%emt 0:00:02]} Bg4 {[%emt 0:00:23]} 4. Bb2 {[%emt 0:00:02]} e6 {[%emt 0:00:01]} 5. c4 {[%emt 0:00:09]} Bd6 {[%emt 0:00:19]} 6. Nc3 {[%emt 0:00:04]} c6 {[%emt 0:00:07]} 7. h3 {[%emt 0:00:02]} Bh5 {[%emt 0:00:01]} 8. g4 {[%emt 0:00:16] The position is equal.} Bg6 {[%emt 0:00:01]} 9. Nh4 {[%emt 0:00:01]} Qe7 {[%emt 0:00:24]} 10. Nxg6 {[%emt 0:00:08]} hxg6 {[%emt 0:00:01]} 11. Bg2 {[%emt 0:00:02]} Ba3 {[%emt 0:00:11]} 12. Qc1 {[%emt 0:00:18]} Bxb2 {[%emt 0:00:02]} 13. Qxb2 {[%emt 0:00:01]} Nbd7 {[%emt 0:00:01]} 14. O-O-O {[%emt 0:00:20]} O-O-O {[%emt 0:00:06]} 15. cxd5 {[%emt 0:00:09]} exd5 {[%emt 0:00:06][%cal Od5d4]} 16. Kb1 {[%emt 0:00:02]} Kb8 {[%emt 0:00:01]} 17. d4 {[%emt 0:00:13]} g5 {[%emt 0:00:11]} 18. Rc1 {[%emt 0:00:10]} Nb6 {[%emt 0:00:08]} 19. a4 {[%emt 0:00:07]} a5 {[%emt 0:00:10]} 20. Na2 {[%emt 0:00:08]} Nc8 {[%emt 0:00:41]} 21. Rc5 {[%emt 0:00:14]} Nd7 {[%emt 0:00:21] [#]} (21... Rde8 $11 {remains equal.}) 22. Rc2 $1 $16 {[%emt 0:00:24]} (22. Rxa5 b6 23. Ra6 Kb7 $17) 22... Rde8 {[%emt 0:00:01]} 23. Rhc1 {[%emt 0:00:03]} ({Better is} 23. b4 $16) 23... Qd8 {[%emt 0:00:03]} ({Black should try} 23... Nd6 $14) 24. b4 {[%emt 0:00:02] And now b5 would win.} axb4 {[%emt 0:00:09][%mdl 8192]} (24... Na7 $16 {is more resistant.} 25. Ka1 Qe7 26. bxa5 Ka8) 25. Nxb4 $18 {[%emt 0:00:02]} (25. Qxb4 Ndb6 $16) 25... Ka8 {[%emt 0:00:05] [#]} 26. Nxc6 $1 {[%emt 0:00:06][%mdl 512]} bxc6 {[%emt 0:00:02]} 27. Rxc6 {[%emt 0:00:01]} Qa5 {[%emt 0:00:05] Wards off Ra6+} (27... Nf6 $18 28. R1c5 (28. Rxc8+ Qxc8 29. Rxc8+ Rxc8 $16) 28... Re6) 28. Bf1 $2 {[%emt 0:00:16]} (28. Ra6+ {mates} Na7 29. Rxa5 Re5 30. Rxa7+ (30. dxe5 Rh6 31. Bxd5+ Rc6 32. Bxc6#) 30... Kxa7 31. Rc7+ Ka8 32. Qb7#) 28... Ncb6 $1 $11 {[%emt 0:00:03]} (28... Qxa4 $2 29. Ra6+ $18) 29. R1c5 $2 {[%emt 0:00:09]} Nxc5 $17 {[%emt 0:00:03]} 30. dxc5 $2 {[%emt 0:00:01]} (30. Rxc5 $17 Qxa4 (30... Qe1+ $2 31. Rc1 $17) 31. Bb5 (31. Qxb6 $2 {too greedy.} Rb8 $19)) 30... Nxa4 $19 {[%emt 0:00:00] ( -> ...Rb8)} ({Less strong is} 30... Qxa4 31. Rxb6 Rb8 32. Bg2 Qd1+ 33. Ka2 $11) 31. Qa3 {[%emt 0:00:09]} Rb8+ {[%emt 0:00:01]} 32. Kc2 {[%emt 0:00:03]} Rhc8 $2 {[%emt 0:00:02]} (32... Rh6 33. Rxh6 gxh6) 33. Ra6+ {[%emt 0:00:01]} Qxa6 {[%emt 0:00:02] Weighted Error Value: White=0.93/Black=1.07.  Loses game:     	White=1     	Black=1      Missed win:     	White=1     	---        Mistake:       	White=1     	Black=3      Inaccurate:     	White=4     	Black=3      OK:         	White=5     	Black=3      Best:        	---       	Black=2      Strong:       	White=1     	Black=1      Brilliant:      	White=1     	---} 0-1

[Event "EIBCC 2024"]
[Site "Skopje"]
[Date "2024.12.09"]
[Round "3.22"]
[White "Danov, Lyubomir"]
[Black "Motylev, Alexander"]
[Result "0-1"]
[Annotator "TA"]
[ECO "B36"]
[WhiteElo "2297"]
[BlackElo "2596"]
[PlyCount "78"]
[EventDate "2024.12.07"]
[EventCountry "MKD"]
[SourceTitle "playchess.com"]
[Source "ChessBase"]
[SourceQuality "1"]
[TimeControl "180+2"]

{[%evp 19,78,29,38,28,31,31,39,17,24,0,0,8,25,10,37,33,41,18,18,15,88,93,90,89,91,88,91,90,91,91,91,81,76,69,74,63,131,145,147,131,177,175,239,262,235,225,341,242,232,237,225,190,1004,246,185,9,9,-372,-339,-326,-365]} 1. e4 {[%emt 0:00:02]} c5 {[%emt 0:00:01]} 2. Nf3 {[%emt 0:00:02]} d6 {[%emt 0:00:02]} 3. d4 {[%emt 0:00:02]} cxd4 {[%emt 0:00:01]} 4. Nxd4 {[%emt 0:00:01]} Nc6 {[%emt 0:00:05]} 5. c4 {[%emt 0:00:11]} g6 {[%emt 0:00:02]} 6. Nc3 {[%emt 0:00:03]} Nf6 {[%emt 0:00:07]} 7. Be2 {[%emt 0:00:03]} Nxd4 {[%emt 0:00:02]} 8. Qxd4 {[%emt 0:00:01]} Bg7 {[%emt 0:00:01]} 9. O-O {[%emt 0:00:06]} O-O {[%emt 0:00:01]} 10. Qd3 {[%emt 0:00:04]} Bd7 {[%emt 0:00:08]} 11. Be3 {[%emt 0:00:04]} a6 {[%emt 0:00:13][%cal Ob7b5,Ba7a6,Ba6a5][%mdl 32]} 12. a4 {[%emt 0:00:08]} a5 {[%emt 0:00:17]} 13. Rfd1 {[%emt 0:00:02] White is slightly better.} Bc6 {[%emt 0:00:03]} 14. f3 {[%emt 0:00:11]} Nd7 {[%emt 0:00:03]} 15. Qc2 {[%emt 0:00:08]} Rc8 {[%emt 0:00:18]} 16. Rac1 {[%emt 0:00:04]} Re8 {[%emt 0:00:04]} 17. b3 {[%emt 0:00:08]} Qc7 {[%emt 0:00:05]} 18. Qd2 {[%emt 0:00:17]} Nc5 {[%emt 0:00:06]} 19. Rb1 {[%emt 0:00:05]} Rcd8 {[%emt 0:00:30]} (19... b6 $11 {remains equal.}) 20. Nd5 $16 {[%emt 0:00:15]} Bxd5 {[%emt 0:00:09]} 21. cxd5 {[%emt 0:00:02]} Rc8 {[%emt 0:00:04]} 22. Bb5 {[%emt 0:00:06]} Red8 {[%emt 0:00:02] Black is weak on the light squares} 23. Kh1 {[%emt 0:00:16]} Ra8 {[%emt 0:00:32]} 24. Qe1 {[%emt 0:00:08]} Rdc8 {[%emt 0:00:03]} 25. Qh4 {[%emt 0:00:22]} Bf6 {[%emt 0:00:04]} 26. Qf2 {[%emt 0:00:01]} Qd8 {[%emt 0:00:06]} 27. g4 {[%emt 0:00:06]} g5 {[%emt 0:00:07] [#]} ({Better is} 27... Qf8 $14) 28. h4 $1 {[%emt 0:00:05][%mdl 512]} h6 {[%emt 0:00:02]} 29. Kg2 {[%emt 0:00:04][%cal Oe4e5]} Qf8 {[%emt 0:00:04]} (29... gxh4 $16 30. Bxh6 e6) 30. hxg5 {[%emt 0:00:05]} hxg5 {[%emt 0:00:01]} (30... Bxg5 $142 31. f4 Bf6 (31... Nxe4 $2 {is the wrong capture.} 32. Qf3 $18)) 31. Rh1 $18 {[%emt 0:00:03] aiming for Rh5.} Qg7 {[%emt 0:00:01]} 32. Rh5 {[%emt 0:00:03][%cal Oe4e5] e5! would now be deadly.} Na6 {[%emt 0:00:06]} (32... Qg6 $142) 33. Bxa6 {[%emt 0:00:12]} bxa6 {[%emt 0:00:05]} 34. Qd2 {[%emt 0:00:02][%csl LRa5,LRg5][%cal Ob1h1] Rbh1! is the strong threat.} Bc3 {[%emt 0:00:07]} 35. Qd3 {[%emt 0:00:03]} f6 {[%emt 0:00:03]} (35... Bf6 36. Bd2 Kf8) 36. Rbh1 $2 {[%emt 0:00:05]} (36. e5) 36... Be5 {[%emt 0:00:01]} 37. Qd2 {[%emt 0:00:05]} (37. Bd4 $1 $18 {[%cal Rd4e5] And now Bxe5 would win.} Bxd4 38. Qxd4 Rc2+ 39. Kh3) 37... Rc3 $11 {[%emt 0:00:07] [#]} 38. Bxg5 $2 {[%emt 0:00:05][%mdl 8192] [#]} Rac8 $1 $19 {[%emt 0:00:02][%cal Oc3c2] Threatens to win with ...Rc2!} (38... fxg5 $2 {perishes.} 39. Rxg5 Rf8 40. Rxg7+ $18) 39. Bh6 {[%emt 0:00:15]} Rc2 $1 {[%emt 0:00:02] Weighted Error Value: White=0.50/Black=0.16 (very precise) .  Loses game:     	White=1     	---        Mistake:       	White=1     	Black=6      Inaccurate:     	---       	Black=1      OK:         	White=5     	Black=11     Best:        	White=2     	Black=2      Strong:       	---       	Black=2} 0-1

[Event "EIBCC 2024"]
[Site "Skopje"]
[Date "2024.12.09"]
[Round "3.23"]
[White "Baidetskyi, Valentin"]
[Black "Aizenberg, Benny"]
[Result "0-1"]
[Annotator "TA"]
[ECO "B45"]
[WhiteElo "2519"]
[BlackElo "2425"]
[PlyCount "52"]
[EventDate "2024.12.07"]
[EventCountry "MKD"]
[SourceTitle "playchess.com"]
[Source "ChessBase"]
[SourceQuality "1"]
[TimeControl "180+2"]

{[%evp 16,52,16,12,72,14,1,5,35,-81,-81,-401,-375,-464,-461,-558,-550,-520,-579,-589,-582,-592,-581,-577,-566,-672,-670,-653,-618,-662,-640,-640,-640,-743,-762,-774,-752,-758,-755]} 1. e4 {[%emt 0:00:01]} c5 {[%emt 0:00:01]} 2. Nf3 {[%emt 0:00:01]} e6 {[%emt 0:00:01]} 3. d4 {[%emt 0:00:01]} cxd4 {[%emt 0:00:01]} 4. Nxd4 {[%emt 0:00:01]} Nf6 {[%emt 0:00:01]} 5. Nc3 {[%emt 0:00:03]} Nc6 {[%emt 0:00:01]} 6. Nxc6 {[%emt 0:00:01]} bxc6 {[%emt 0:00:01]} 7. e5 {[%emt 0:00:01]} Nd5 {[%emt 0:00:01]} 8. Ne4 {[%emt 0:00:01]} Qc7 {[%emt 0:00:01]} 9. f4 {[%emt 0:00:02]} Rb8 {[%emt 0:00:00] [#]} (9... Qb6 $11 {remains equal.}) 10. a3 {[%emt 0:00:01]} ({White should play} 10. c4 $1 $16 {[%cal Rc4d5]}) 10... Qb6 $11 {[%emt 0:00:04]} 11. Bd3 {[%emt 0:00:09]} Ba6 {[%emt 0:00:03] The position is equal.} (11... Be7 $5) 12. c4 {[%emt 0:00:17] [#]} (12. Bxa6 $14 {keeps the upper hand.} Qxa6 13. b3) 12... Qd4 $1 $17 {[%emt 0:00:08]} 13. cxd5 {[%emt 0:01:37][%mdl 8192] Loses the game.} (13. Qc2 $17 {is a better chance.}) 13... Bxd3 $19 {[%emt 0:00:02]} 14. Nf2 {[%emt 0:00:03]} Rxb2 {[%emt 0:00:01] Black is clearly winning.} 15. Nxd3 {[%emt 0:00:53]} Qe4+ {[%emt 0:00:02]} ({Inferior is} 15... Rxg2 16. Qf3 Qc3+ 17. Kf1 $16) 16. Be3 {[%emt 0:00:01]} Qxe3+ {[%emt 0:00:02]} 17. Kf1 {[%emt 0:00:00]} Rd2 {[%emt 0:00:01]} 18. Qf3 {[%emt 0:00:09]} Qxf3+ {[%emt 0:00:04]} 19. gxf3 {[%emt 0:00:01]} Rxd3 {[%emt 0:00:02]} 20. dxc6 {[%emt 0:00:00]} dxc6 {[%emt 0:00:03][%cal Oe8d7]} 21. Ke2 {[%emt 0:00:01]} Rd5 {[%emt 0:00:13]} 22. Rab1 {[%emt 0:00:03]} Bc5 {[%emt 0:00:05][%cal Oc5b6]} 23. Rb8+ {[%emt 0:00:02]} Rd8 {[%emt 0:00:01]} 24. Rxd8+ {[%emt 0:00:06]} Kxd8 {[%emt 0:00:02]} 25. Rc1 {[%emt 0:00:02]} Bxa3 {[%emt 0:00:02]} 26. Rxc6 {[%emt 0:00:01]} Kd7 {[%emt 0:00:03] Weighted Error Value: White=0.71/Black=0.13 (very precise) .  Loses game:     	White=1     	---        Mistake:       	White=2     	---        Inaccurate:     	---       	Black=1      OK:         	---       	Black=4      Best:        	White=3     	Black=4      Strong:       	---       	Black=1} 0-1